[Event "*** SCC Grand Prix: Titled Tuesday Blitz"]
[Site "Chess.com"]
[Date "2020.10.06"]
[Round "3"]
[White "RestartingChess"]
[Black "ram1zan"]
[Result "1-0"]
[WhiteElo "2489"]
[BlackElo "2860"]
[TimeControl "180+1"]
[EndTime "10:27:44 PDT"]
[Termination "RestartingChess won by resignation"]

1. e3 {[%clk 0:03:00.3]} 1... e5 {[%clk 0:02:58.5]} 2. Nf3 {[%clk 0:03:01.2]}
2... Nc6 {[%clk 0:02:58.5]} 3. d4 {[%clk 0:03:01.6]} 3... e4 {[%clk 0:02:57.4]}
4. Nfd2 {[%clk 0:03:01.7]} 4... f5 {[%clk 0:02:56]} 5. c4 {[%clk 0:03:02.1]}
5... Nf6 {[%clk 0:02:55.6]} 6. Nc3 {[%clk 0:03:02.6]} 6... g6 {[%clk 0:02:54.9]}
7. a3 {[%clk 0:03:02.5]} 7... Bg7 {[%clk 0:02:53.6]} 8. b4 {[%clk 0:03:02.9]}
8... O-O {[%clk 0:02:53.4]} 9. Bb2 {[%clk 0:03:03.4]} 9... d6 {[%clk 0:02:52.9]}
10. b5 {[%clk 0:03:01.8]} 10... Ne7 {[%clk 0:02:52.9]} 11. a4 {[%clk 0:03:02.1]}
11... Kh8 {[%clk 0:02:51.3]} 12. Be2 {[%clk 0:03:00.8]} 12... Qe8 {[%clk
0:02:47.4]} 13. h4 {[%clk 0:03:00.8]} 13... f4 {[%clk 0:02:32.9]} 14. exf4
{[%clk 0:02:51.9]} 14... Nf5 {[%clk 0:02:32.1]} 15. g4 {[%clk 0:02:38.2]} 15...
Nxd4 {[%clk 0:02:31.6]} 16. g5 {[%clk 0:02:38.2]} 16... Nxe2 {[%clk 0:02:27.9]}
17. gxf6 {[%clk 0:02:27.1]} 17... Bxf6 {[%clk 0:02:16.6]} 18. Qxe2 {[%clk
0:02:26.4]} 18... Bf5 {[%clk 0:01:58.9]} 19. Nb3 {[%clk 0:02:23.6]} 19... c6
{[%clk 0:01:57.9]} 20. Nd1 {[%clk 0:02:13.6]} 20... h5 {[%clk 0:01:53.8]} 21.
Ne3 {[%clk 0:02:11.7]} 21... Qe6 {[%clk 0:01:52.6]} 22. Qd2 {[%clk 0:01:37.4]}
22... Kh7 {[%clk 0:01:43.7]} 23. Bxf6 {[%clk 0:01:37.4]} 23... Qxf6 {[%clk
0:01:43]} 24. Qd4 {[%clk 0:01:37.7]} 24... Qf7 {[%clk 0:01:41.2]} 25. Nc1 {[%clk
0:01:26]} 25... c5 {[%clk 0:01:23.8]} 26. Qc3 {[%clk 0:01:20.9]} 26... Be6
{[%clk 0:01:22.6]} 27. Ne2 {[%clk 0:01:20.1]} 27... a6 {[%clk 0:01:17.4]} 28. b6
{[%clk 0:01:18.7]} 28... Rad8 {[%clk 0:01:11.7]} 29. Rd1 {[%clk 0:01:18.1]}
29... Qe8 {[%clk 0:01:04.6]} 30. a5 {[%clk 0:01:14.7]} 30... Rd7 {[%clk
0:01:04.8]} 31. Rg1 {[%clk 0:01:14.1]} 31... Qe7 {[%clk 0:00:59]} 32. Rg5 {[%clk
0:01:12.6]} 32... Qd8 {[%clk 0:00:58.8]} 33. f5 {[%clk 0:00:56.2]} 33... Bxf5
{[%clk 0:00:55.3]} 34. Nxf5 {[%clk 0:00:56.1]} 34... Rxf5 {[%clk 0:00:56.2]} 35.
Rxf5 {[%clk 0:00:52.1]} 35... gxf5 {[%clk 0:00:57.1]} 36. Qg3 {[%clk 0:00:48.4]}
36... Rg7 {[%clk 0:00:56]} 37. Qf4 {[%clk 0:00:46.2]} 37... Qf6 {[%clk
0:00:54.4]} 38. Ng3 {[%clk 0:00:39.9]} 38... Qc3+ {[%clk 0:00:42.8]} 39. Kf1
{[%clk 0:00:40]} 39... Qxc4+ {[%clk 0:00:42.4]} 40. Kg2 {[%clk 0:00:39]} 40...
Qf7 {[%clk 0:00:37.9]} 41. Rxd6 {[%clk 0:00:38.5]} 41... Qf8 {[%clk 0:00:35.4]}
42. Kh2 {[%clk 0:00:31.4]} 42... c4 {[%clk 0:00:35]} 43. Qh6+ {[%clk 0:00:23.7]}
43... Kg8 {[%clk 0:00:34.8]} 44. Nxh5 {[%clk 0:00:22.2]} 44... Re7 {[%clk
0:00:12.9]} 45. Rg6+ {[%clk 0:00:16.5]} 45... Kf7 {[%clk 0:00:13.3]} 46. Rf6+
{[%clk 0:00:17.1]} 46... Ke8 {[%clk 0:00:13.1]} 47. Qxf8+ {[%clk 0:00:16.6]}
47... Kd7 {[%clk 0:00:13.7]} 48. Rf7 {[%clk 0:00:17.1]} 48... Rxf7 {[%clk
0:00:13.8]} 49. Qxf7+ {[%clk 0:00:17.6]} 49... Kc6 {[%clk 0:00:14.7]} 50. Qxc4+
{[%clk 0:00:18.1]} 50... Kd6 {[%clk 0:00:15.2]} 51. Nf4 {[%clk 0:00:18.4]} 51...
Ke5 {[%clk 0:00:16.1]} 52. Kg3 {[%clk 0:00:18]} 52... Kf6 {[%clk 0:00:15.6]} 53.
Qe6+ {[%clk 0:00:18.4]} 1-0

[Event "*** SCC Grand Prix: Titled Tuesday Blitz"]
[Site "Chess.com"]
[Date "2020.10.06"]
[Round "3"]
[White "bascheyaro"]
[Black "PhileKhoob"]
[Result "0-1"]
[WhiteElo "2719"]
[BlackElo "2469"]
[TimeControl "180+1"]
[EndTime "10:27:45 PDT"]
[Termination "PhileKhoob won on time"]

1. d4 {[%clk 0:02:19.3]} 1... Nf6 {[%clk 0:02:57.8]} 2. Nc3 {[%clk 0:02:17.7]}
2... d5 {[%clk 0:02:57.2]} 3. Bf4 {[%clk 0:02:17.9]} 3... g6 {[%clk 0:02:57.4]}
4. e3 {[%clk 0:02:18.1]} 4... Bg7 {[%clk 0:02:57.8]} 5. Nb5 {[%clk 0:02:18.5]}
5... Na6 {[%clk 0:02:57.3]} 6. Nf3 {[%clk 0:02:18.6]} 6... O-O {[%clk
0:02:57.7]} 7. h4 {[%clk 0:02:18]} 7... Bg4 {[%clk 0:02:53.4]} 8. c4 {[%clk
0:02:17.4]} 8... c5 {[%clk 0:02:47.1]} 9. dxc5 {[%clk 0:02:12]} 9... Nxc5 {[%clk
0:02:34.2]} 10. Be2 {[%clk 0:01:55.6]} 10... dxc4 {[%clk 0:02:07]} 11. O-O
{[%clk 0:01:55]} 11... Nd3 {[%clk 0:02:00.5]} 12. Bg5 {[%clk 0:01:54.2]} 12...
Nxb2 {[%clk 0:01:53.3]} 13. Qc2 {[%clk 0:01:53.4]} 13... Nd3 {[%clk 0:01:36.6]}
14. Qxc4 {[%clk 0:01:52.4]} 14... Bxf3 {[%clk 0:01:36.7]} 15. gxf3 {[%clk
0:01:46]} 15... Ne5 {[%clk 0:01:36.3]} 16. Qb3 {[%clk 0:01:45.5]} 16... Qb6
{[%clk 0:01:29.6]} 17. Bf4 {[%clk 0:01:44.3]} 17... Nfd7 {[%clk 0:01:20.4]} 18.
Rad1 {[%clk 0:01:31.1]} 18... a6 {[%clk 0:01:18]} 19. Nc3 {[%clk 0:01:30.7]}
19... Qxb3 {[%clk 0:01:17.5]} 20. axb3 {[%clk 0:01:31.6]} 20... Rac8 {[%clk
0:01:13.9]} 21. Nd5 {[%clk 0:01:31.5]} 21... Rfe8 {[%clk 0:01:13.7]} 22. Rd2
{[%clk 0:01:26.2]} 22... e6 {[%clk 0:01:13]} 23. Nb4 {[%clk 0:01:25.1]} 23...
Nc5 {[%clk 0:01:08.8]} 24. Rb1 {[%clk 0:01:17.6]} 24... h5 {[%clk 0:00:55.2]}
25. Bg5 {[%clk 0:01:11.2]} 25... Ned7 {[%clk 0:00:41.3]} 26. Rdd1 {[%clk
0:01:02.8]} 26... e5 {[%clk 0:00:36.9]} 27. e4 {[%clk 0:01:02.7]} 27... Nf8
{[%clk 0:00:27.8]} 28. Nd5 {[%clk 0:01:00.2]} 28... Kh8 {[%clk 0:00:22]} 29.
Rdc1 {[%clk 0:00:30.4]} 29... Nce6 {[%clk 0:00:20.6]} 30. Be3 {[%clk 0:00:27.6]}
30... Nd4 {[%clk 0:00:20.6]} 31. Bd1 {[%clk 0:00:27.4]} 31... Nfe6 {[%clk
0:00:19.4]} 32. Kg2 {[%clk 0:00:22]} 32... f5 {[%clk 0:00:18.1]} 33. b4 {[%clk
0:00:19.7]} 33... f4 {[%clk 0:00:18.1]} 34. Bxd4 {[%clk 0:00:20.1]} 34... Nxd4
{[%clk 0:00:19]} 35. Nb6 {[%clk 0:00:18.6]} 35... Rc6 {[%clk 0:00:17]} 36. Ba4
{[%clk 0:00:17.7]} 36... Rxc1 {[%clk 0:00:15.9]} 37. Rxc1 {[%clk 0:00:18.6]}
37... Re6 {[%clk 0:00:15.7]} 38. Rc8+ {[%clk 0:00:16.3]} 38... Kh7 {[%clk
0:00:15.4]} 39. Nd5 {[%clk 0:00:16.9]} 39... b5 {[%clk 0:00:14.2]} 40. Bd1
{[%clk 0:00:16.7]} 40... Rc6 {[%clk 0:00:14.5]} 41. Rxc6 {[%clk 0:00:02.2]}
41... Nxc6 {[%clk 0:00:15.4]} 0-1

[Event "*** SCC Grand Prix: Titled Tuesday Blitz"]
[Site "Chess.com"]
[Date "2020.10.06"]
[Round "3"]
[White "Teo2000"]
[Black "bratkoo"]
[Result "1-0"]
[WhiteElo "2411"]
[BlackElo "2561"]
[TimeControl "180+1"]
[EndTime "10:27:47 PDT"]
[Termination "Teo2000 won by checkmate"]

1. e4 {[%clk 0:03:00.9]} 1... e6 {[%clk 0:02:56.3]} 2. d4 {[%clk 0:02:59.1]}
2... d5 {[%clk 0:02:52.5]} 3. e5 {[%clk 0:02:58.8]} 3... c5 {[%clk 0:02:52.3]}
4. c3 {[%clk 0:02:59.3]} 4... Nc6 {[%clk 0:02:51.4]} 5. Nf3 {[%clk 0:02:52.6]}
5... Bd7 {[%clk 0:02:51.7]} 6. Be2 {[%clk 0:02:51.1]} 6... f6 {[%clk 0:02:51.7]}
7. O-O {[%clk 0:02:23.1]} 7... fxe5 {[%clk 0:02:50.8]} 8. Nxe5 {[%clk
0:02:23.1]} 8... Nxe5 {[%clk 0:02:51.1]} 9. dxe5 {[%clk 0:02:24]} 9... Qc7
{[%clk 0:02:51.8]} 10. f4 {[%clk 0:02:21.1]} 10... O-O-O {[%clk 0:02:50.9]} 11.
b4 {[%clk 0:02:16]} 11... cxb4 {[%clk 0:02:49.9]} 12. cxb4 {[%clk 0:02:13.5]}
12... Bxb4 {[%clk 0:02:50]} 13. Bb2 {[%clk 0:02:02.3]} 13... Kb8 {[%clk
0:02:47.9]} 14. Nd2 {[%clk 0:01:51]} 14... Ne7 {[%clk 0:02:47.4]} 15. Nb3 {[%clk
0:01:47.2]} 15... Nc6 {[%clk 0:02:37.7]} 16. Rb1 {[%clk 0:01:41.9]} 16... Rhg8
{[%clk 0:02:36.8]} 17. a3 {[%clk 0:01:41.3]} 17... Be7 {[%clk 0:02:35.9]} 18.
Nd4 {[%clk 0:01:29.5]} 18... g5 {[%clk 0:02:34.8]} 19. Nb5 {[%clk 0:01:23]}
19... Qb6+ {[%clk 0:02:28.9]} 20. Kh1 {[%clk 0:01:22.8]} 20... gxf4 {[%clk
0:02:26.2]} 21. Bc3 {[%clk 0:01:22.3]} 21... Qe3 {[%clk 0:02:16.7]} 22. Rf3
{[%clk 0:01:11]} 22... Qe4 {[%clk 0:01:27.9]} 23. Bd3 {[%clk 0:01:05.2]} 23...
Bc8 {[%clk 0:01:28]} 24. Qb3 {[%clk 0:00:32.6]} 24... a6 {[%clk 0:00:30.1]} 25.
Bxe4 {[%clk 0:00:19.1]} 25... dxe4 {[%clk 0:00:31]} 26. Rxf4 {[%clk 0:00:19.6]}
26... axb5 {[%clk 0:00:30.8]} 27. Rxe4 {[%clk 0:00:19.8]} 27... Rd5 {[%clk
0:00:30.6]} 28. a4 {[%clk 0:00:15.5]} 28... b4 {[%clk 0:00:26.8]} 29. Bb2 {[%clk
0:00:10.1]} 29... Rgd8 {[%clk 0:00:26.6]} 30. Ree1 {[%clk 0:00:10.1]} 30... Na5
{[%clk 0:00:25.1]} 31. Qg3 {[%clk 0:00:09.1]} 31... Bd7 {[%clk 0:00:25.4]} 32.
Qh3 {[%clk 0:00:08.9]} 32... Bc6 {[%clk 0:00:24.5]} 33. Qxh7 {[%clk 0:00:09.2]}
33... Bc5 {[%clk 0:00:24.4]} 34. Rg1 {[%clk 0:00:06.2]} 34... Bxg1 {[%clk
0:00:22.7]} 35. Rxg1 {[%clk 0:00:04.2]} 35... Nc4 {[%clk 0:00:22.8]} 36. Bc1
{[%clk 0:00:04.4]} 36... b3 {[%clk 0:00:22.9]} 37. Qh6 {[%clk 0:00:04.2]} 37...
b2 {[%clk 0:00:22]} 38. Bxb2 {[%clk 0:00:04.7]} 38... Nxb2 {[%clk 0:00:22.2]}
39. Qxe6 {[%clk 0:00:05.4]} 39... Rd1 {[%clk 0:00:20.8]} 40. h3 {[%clk
0:00:04.8]} 40... Nc4 {[%clk 0:00:17.8]} 41. Qxc4 {[%clk 0:00:03.9]} 41... R1d5
{[%clk 0:00:16.7]} 42. a5 {[%clk 0:00:03.4]} 42... Rxa5 {[%clk 0:00:15.3]} 43.
Kh2 {[%clk 0:00:03.6]} 43... Rxe5 {[%clk 0:00:15.3]} 44. Qf4 {[%clk 0:00:04.2]}
44... Re8 {[%clk 0:00:13.2]} 45. Re1 {[%clk 0:00:04.8]} 45... Ka8 {[%clk
0:00:14.1]} 46. Rxe5 {[%clk 0:00:04.8]} 46... Rg8 {[%clk 0:00:14.3]} 47. Ra5#
{[%clk 0:00:04.7]} 1-0

[Event "*** SCC Grand Prix: Titled Tuesday Blitz"]
[Site "Chess.com"]
[Date "2020.10.06"]
[Round "3"]
[White "FloMaster111"]
[Black "profofchess"]
[Result "1-0"]
[WhiteElo "2574"]
[BlackElo "2391"]
[TimeControl "180+1"]
[EndTime "10:27:47 PDT"]
[Termination "FloMaster111 won by checkmate"]

1. e4 {[%clk 0:02:59.9]} 1... e6 {[%clk 0:02:59.8]} 2. Qe2 {[%clk 0:02:58]} 2...
c5 {[%clk 0:02:57.8]} 3. Nf3 {[%clk 0:02:55.3]} 3... Nc6 {[%clk 0:02:58.3]} 4.
g3 {[%clk 0:02:52.3]} 4... g6 {[%clk 0:02:58.5]} 5. Bg2 {[%clk 0:02:52.4]} 5...
Bg7 {[%clk 0:02:58.9]} 6. O-O {[%clk 0:02:52.4]} 6... d6 {[%clk 0:02:58.8]} 7.
c3 {[%clk 0:02:50.7]} 7... e5 {[%clk 0:02:58.6]} 8. Na3 {[%clk 0:02:49.9]} 8...
Nge7 {[%clk 0:02:58.3]} 9. Nc2 {[%clk 0:02:49.8]} 9... O-O {[%clk 0:02:55.6]}
10. Rd1 {[%clk 0:02:49.9]} 10... f5 {[%clk 0:02:18.9]} 11. d4 {[%clk 0:01:51.7]}
11... fxe4 {[%clk 0:02:15.8]} 12. Nh4 {[%clk 0:01:47.4]} 12... exd4 {[%clk
0:01:15.3]} 13. cxd4 {[%clk 0:01:48.3]} 13... Nxd4 {[%clk 0:01:01]} 14. Nxd4
{[%clk 0:01:48.3]} 14... Bxd4 {[%clk 0:01:01.9]} 15. Be3 {[%clk 0:01:43.8]}
15... Nc6 {[%clk 0:01:01.8]} 16. Bxe4 {[%clk 0:01:40.4]} 16... Qf6 {[%clk
0:00:54.2]} 17. Bxc6 {[%clk 0:01:28.2]} 17... bxc6 {[%clk 0:00:54]} 18. Bxd4
{[%clk 0:01:22.9]} 18... cxd4 {[%clk 0:00:51.4]} 19. Qc4+ {[%clk 0:01:23]} 19...
d5 {[%clk 0:00:15.8]} 20. Qxd4 {[%clk 0:01:23]} 20... Rb8 {[%clk 0:00:15.9]} 21.
b3 {[%clk 0:01:20]} 21... Qxd4 {[%clk 0:00:11.5]} 22. Rxd4 {[%clk 0:01:20.9]}
22... Be6 {[%clk 0:00:04.6]} 23. Ng2 {[%clk 0:01:19.9]} 23... c5 {[%clk
0:00:04.3]} 24. Ra4 {[%clk 0:01:16.1]} 24... Rb7 {[%clk 0:00:02.9]} 25. Nf4
{[%clk 0:01:16.7]} 25... Bf7 {[%clk 0:00:03]} 26. Rd1 {[%clk 0:01:17.6]} 26...
Rd8 {[%clk 0:00:02.8]} 27. Ra5 {[%clk 0:01:13.3]} 27... Rc7 {[%clk 0:00:02.7]}
28. h4 {[%clk 0:00:55.7]} 28... d4 {[%clk 0:00:02.9]} 29. Nd3 {[%clk 0:00:52.8]}
29... c4 {[%clk 0:00:03.3]} 30. bxc4 {[%clk 0:00:49]} 30... Bxc4 {[%clk
0:00:03.5]} 31. Ne5 {[%clk 0:00:41.3]} 31... Be6 {[%clk 0:00:03.1]} 32. Ra3
{[%clk 0:00:38.9]} 32... Bf5 {[%clk 0:00:02.9]} 33. Kg2 {[%clk 0:00:28.9]} 33...
Bc2 {[%clk 0:00:03]} 34. Rd2 {[%clk 0:00:28.9]} 34... Rc5 {[%clk 0:00:02.2]} 35.
Nf3 {[%clk 0:00:27]} 35... d3 {[%clk 0:00:02.4]} 36. Ne1 {[%clk 0:00:27.1]}
36... Rdc8 {[%clk 0:00:01.8]} 37. Rxa7 {[%clk 0:00:21.8]} 37... Rc4 {[%clk
0:00:01.6]} 38. Rd7 {[%clk 0:00:17.5]} 38... Rc3 {[%clk 0:00:01.7]} 39. Nxd3
{[%clk 0:00:16.4]} 39... Bxd3 {[%clk 0:00:01.9]} 40. R2xd3 {[%clk 0:00:17.3]}
40... Rc2 {[%clk 0:00:02.2]} 41. Ra3 {[%clk 0:00:12.2]} 41... Rb2 {[%clk
0:00:01.9]} 42. Raa7 {[%clk 0:00:10.6]} 42... Rcc2 {[%clk 0:00:02.1]} 43. Rd8#
{[%clk 0:00:10.8]} 1-0

[Event "*** SCC Grand Prix: Titled Tuesday Blitz"]
[Site "Chess.com"]
[Date "2020.10.06"]
[Round "3"]
[White "korkmaz16"]
[Black "ehrenfeld"]
[Result "0-1"]
[WhiteElo "2334"]
[BlackElo "2515"]
[TimeControl "180+1"]
[EndTime "10:27:47 PDT"]
[Termination "ehrenfeld won by resignation"]

1. e4 {[%clk 0:03:00.7]} 1... e5 {[%clk 0:02:59.1]} 2. Nf3 {[%clk 0:02:56.5]}
2... Nc6 {[%clk 0:02:59.1]} 3. Bc4 {[%clk 0:02:43.8]} 3... Nf6 {[%clk
0:02:58.3]} 4. d4 {[%clk 0:02:42.7]} 4... exd4 {[%clk 0:02:57.3]} 5. O-O {[%clk
0:02:41.7]} 5... Nxe4 {[%clk 0:02:56.2]} 6. Re1 {[%clk 0:02:41.5]} 6... d5
{[%clk 0:02:55.9]} 7. Bxd5 {[%clk 0:02:41.8]} 7... Qxd5 {[%clk 0:02:55.8]} 8.
Nc3 {[%clk 0:02:42.5]} 8... Qh5 {[%clk 0:02:50.5]} 9. Nxe4 {[%clk 0:02:42.1]}
9... Be6 {[%clk 0:02:49.5]} 10. Bg5 {[%clk 0:02:42.2]} 10... Bd6 {[%clk
0:02:48.5]} 11. h3 {[%clk 0:02:41.9]} 11... O-O {[%clk 0:02:38.4]} 12. Nxd6
{[%clk 0:02:32.4]} 12... cxd6 {[%clk 0:02:37.7]} 13. Bf4 {[%clk 0:02:32.5]}
13... Qd5 {[%clk 0:02:34.8]} 14. Qd2 {[%clk 0:02:30.1]} 14... Bxh3 {[%clk
0:02:26]} 15. Bxd6 {[%clk 0:02:21.2]} 15... Qxd6 {[%clk 0:02:20.1]} 16. gxh3
{[%clk 0:02:21]} 16... Qf6 {[%clk 0:02:13.6]} 17. Kg2 {[%clk 0:02:15.8]} 17...
Rad8 {[%clk 0:02:12.6]} 18. Rad1 {[%clk 0:02:12.4]} 18... Rd5 {[%clk 0:02:11.2]}
19. Re4 {[%clk 0:02:06.3]} 19... Rf5 {[%clk 0:02:06.5]} 20. Nxd4 {[%clk
0:02:01.9]} 20... Rg5+ {[%clk 0:01:52.6]} 21. Rg4 {[%clk 0:01:57.6]} 21... Rxg4+
{[%clk 0:01:42.3]} 22. hxg4 {[%clk 0:01:57.2]} 22... Rd8 {[%clk 0:01:40.5]} 23.
c3 {[%clk 0:01:55.6]} 23... Nxd4 {[%clk 0:01:36.2]} 24. cxd4 {[%clk 0:01:54.8]}
24... h5 {[%clk 0:01:35.1]} 25. f3 {[%clk 0:01:40.9]} 25... hxg4 {[%clk
0:01:33.1]} 26. fxg4 {[%clk 0:01:41.8]} 26... Qe6 {[%clk 0:01:31.1]} 27. Kg3
{[%clk 0:01:40.2]} 27... Qxa2 {[%clk 0:01:30]} 28. d5 {[%clk 0:01:39.7]} 28...
Qb3+ {[%clk 0:01:28.9]} 29. Kg2 {[%clk 0:01:31.9]} 29... Rd6 {[%clk 0:01:25.4]}
30. Qd4 {[%clk 0:01:30.8]} 30... Qc2+ {[%clk 0:01:20.8]} 31. Rd2 {[%clk
0:01:30.3]} 31... Qb3 {[%clk 0:01:18.7]} 32. Qxa7 {[%clk 0:01:10.8]} 32... Rxd5
{[%clk 0:00:58.2]} 33. Qb8+ {[%clk 0:01:09.7]} 33... Kh7 {[%clk 0:00:58.1]} 34.
Qh2+ {[%clk 0:01:09.6]} 34... Kg6 {[%clk 0:00:58.1]} 35. Qf4 {[%clk 0:00:54.7]}
35... Rxd2+ {[%clk 0:00:49.5]} 36. Qxd2 {[%clk 0:00:54.1]} 36... Qc4 {[%clk
0:00:44.6]} 37. Kg3 {[%clk 0:00:44.3]} 37... b5 {[%clk 0:00:44]} 38. Qd6+ {[%clk
0:00:43.6]} 38... f6 {[%clk 0:00:43.5]} 39. Qd2 {[%clk 0:00:41.5]} 39... Qe4
{[%clk 0:00:39.5]} 40. b4 {[%clk 0:00:39.2]} 40... Qe5+ {[%clk 0:00:35]} 41. Kh3
{[%clk 0:00:38.7]} 41... Kh7 {[%clk 0:00:32.2]} 42. Qd3+ {[%clk 0:00:36]} 42...
Kh6 {[%clk 0:00:31.2]} 43. Qd2+ {[%clk 0:00:34.6]} 43... g5 {[%clk 0:00:22.5]}
44. Qf2 {[%clk 0:00:27.1]} 44... Qf4 {[%clk 0:00:21.4]} 45. Qxf4 {[%clk
0:00:26.1]} 45... gxf4 {[%clk 0:00:21.4]} 46. Kg2 {[%clk 0:00:26.4]} 46... Kg6
{[%clk 0:00:20.7]} 47. Kf2 {[%clk 0:00:26.1]} 47... f5 {[%clk 0:00:19.4]} 48.
Kf3 {[%clk 0:00:25.4]} 48... Kg5 {[%clk 0:00:18.5]} 49. gxf5 {[%clk 0:00:22.3]}
49... Kxf5 {[%clk 0:00:18.6]} 50. Kf2 {[%clk 0:00:22.8]} 50... Ke4 {[%clk
0:00:19.1]} 51. Ke2 {[%clk 0:00:23.4]} 51... Kd4 {[%clk 0:00:18.5]} 52. Kf3
{[%clk 0:00:23.5]} 52... Kc4 {[%clk 0:00:19.1]} 53. Kxf4 {[%clk 0:00:24.4]}
53... Kxb4 {[%clk 0:00:19.7]} 54. Ke3 {[%clk 0:00:25.3]} 54... Kc3 {[%clk
0:00:20.2]} 55. Ke2 {[%clk 0:00:25.5]} 55... Kc2 {[%clk 0:00:19.5]} 56. Ke3
{[%clk 0:00:25.5]} 56... b4 {[%clk 0:00:19.7]} 57. Kd4 {[%clk 0:00:26.4]} 57...
b3 {[%clk 0:00:20.3]} 58. Kc5 {[%clk 0:00:27.3]} 58... b2 {[%clk 0:00:21]} 59.
Kd4 {[%clk 0:00:28.2]} 59... b1=Q {[%clk 0:00:21.7]} 60. Kc5 {[%clk 0:00:29.1]}
60... Qb3 {[%clk 0:00:21.5]} 0-1

[Event "*** SCC Grand Prix: Titled Tuesday Blitz"]
[Site "Chess.com"]
[Date "2020.10.06"]
[Round "3"]
[White "Chamal_Gedgafov"]
[Black "JuliaEfremova"]
[Result "1-0"]
[WhiteElo "2155"]
[BlackElo "2325"]
[TimeControl "180+1"]
[EndTime "10:27:48 PDT"]
[Termination "Chamal_Gedgafov won by checkmate"]

1. d4 {[%clk 0:03:00.9]} 1... Nf6 {[%clk 0:02:57.4]} 2. c4 {[%clk 0:03:00.6]}
2... c5 {[%clk 0:02:56.2]} 3. d5 {[%clk 0:03:00.3]} 3... b5 {[%clk 0:02:55.7]}
4. cxb5 {[%clk 0:03:00.5]} 4... a6 {[%clk 0:02:56.1]} 5. b6 {[%clk 0:03:01]}
5... d6 {[%clk 0:02:55]} 6. Nc3 {[%clk 0:03:01.3]} 6... g6 {[%clk 0:02:55]} 7.
e4 {[%clk 0:03:01.7]} 7... Bg7 {[%clk 0:02:55.2]} 8. a4 {[%clk 0:03:02.2]} 8...
Qxb6 {[%clk 0:02:52.3]} 9. a5 {[%clk 0:03:02.1]} 9... Qc7 {[%clk 0:02:47.8]} 10.
Nf3 {[%clk 0:03:02]} 10... O-O {[%clk 0:02:47.2]} 11. Be2 {[%clk 0:03:02.4]}
11... Bd7 {[%clk 0:02:40.7]} 12. O-O {[%clk 0:02:58.1]} 12... Bb5 {[%clk
0:02:38.2]} 13. Bd2 {[%clk 0:02:44.9]} 13... Bxe2 {[%clk 0:02:31.8]} 14. Qxe2
{[%clk 0:02:44.2]} 14... Nbd7 {[%clk 0:02:32.4]} 15. h3 {[%clk 0:02:40.9]} 15...
Rfb8 {[%clk 0:02:32.5]} 16. Bf4 {[%clk 0:02:38.7]} 16... Rb4 {[%clk 0:02:29.2]}
17. Rfe1 {[%clk 0:02:29.1]} 17... Rab8 {[%clk 0:02:28.3]} 18. Ra2 {[%clk
0:02:23]} 18... Qb7 {[%clk 0:02:27.5]} 19. Bc1 {[%clk 0:02:13.3]} 19... c4
{[%clk 0:02:20.8]} 20. Nd4 {[%clk 0:02:09.2]} 20... Ne5 {[%clk 0:02:14.7]} 21.
Rd1 {[%clk 0:02:02.4]} 21... Nh5 {[%clk 0:01:49.7]} 22. Kh2 {[%clk 0:01:55.3]}
22... Nd3 {[%clk 0:01:49.2]} 23. Nc6 {[%clk 0:01:49.8]} 23... Nxb2 {[%clk
0:01:33.2]} 24. Bxb2 {[%clk 0:01:30]} 24... Rxb2 {[%clk 0:01:33.4]} 25. Rxb2
{[%clk 0:01:29.8]} 25... Qxb2 {[%clk 0:01:32.9]} 26. Nxb8 {[%clk 0:01:29.2]}
26... Qxb8 {[%clk 0:01:20.8]} 27. Qxc4 {[%clk 0:01:27.2]} 27... Be5+ {[%clk
0:01:13.5]} 28. g3 {[%clk 0:01:24.9]} 28... Qb2 {[%clk 0:01:13.7]} 29. Ne2
{[%clk 0:01:21.5]} 29... Qa3 {[%clk 0:01:04.1]} 30. Qxa6 {[%clk 0:01:13.3]}
30... Qf3 {[%clk 0:01:03.4]} 31. Kg1 {[%clk 0:01:09.3]} 31... Qxe4 {[%clk
0:01:02.2]} 32. Qd3 {[%clk 0:01:07.4]} 32... Qa4 {[%clk 0:01:01]} 33. a6 {[%clk
0:01:07]} 33... Kg7 {[%clk 0:00:54.8]} 34. Kg2 {[%clk 0:00:55.5]} 34... f5
{[%clk 0:00:50]} 35. Rb1 {[%clk 0:00:53.4]} 35... Nf6 {[%clk 0:00:48.6]} 36. Rb7
{[%clk 0:00:52]} 36... Kf7 {[%clk 0:00:45.2]} 37. a7 {[%clk 0:00:50.5]} 37...
Ne4 {[%clk 0:00:42.8]} 38. g4 {[%clk 0:00:42.5]} 38... Nc5 {[%clk 0:00:28.8]}
39. Qb5 {[%clk 0:00:34.3]} 39... Qe4+ {[%clk 0:00:27.5]} 40. f3 {[%clk
0:00:34.4]} 40... Qe3 {[%clk 0:00:20.2]} 41. a8=Q {[%clk 0:00:32.8]} 41... Nd3
{[%clk 0:00:17.9]} 42. Qa7 {[%clk 0:00:29.5]} 42... Ne1+ {[%clk 0:00:16.7]} 43.
Kf1 {[%clk 0:00:29.1]} 43... Qxf3+ {[%clk 0:00:16.8]} 44. Kxe1 {[%clk
0:00:28.7]} 44... Qh1+ {[%clk 0:00:17]} 45. Kd2 {[%clk 0:00:28.3]} 45... Qxh3
{[%clk 0:00:17]} 46. Rxe7+ {[%clk 0:00:27.1]} 46... Kf6 {[%clk 0:00:17.6]} 47.
Rf7+ {[%clk 0:00:26.9]} 47... Kg5 {[%clk 0:00:18]} 48. Qe3+ {[%clk 0:00:26.8]}
48... Qxe3+ {[%clk 0:00:14.9]} 49. Kxe3 {[%clk 0:00:27.7]} 49... Bf4+ {[%clk
0:00:14.3]} 50. Nxf4 {[%clk 0:00:27.2]} 50... fxg4 {[%clk 0:00:15.2]} 51. Nxg6
{[%clk 0:00:26.7]} 51... h6 {[%clk 0:00:15.9]} 52. Qd7 {[%clk 0:00:27.1]} 52...
h5 {[%clk 0:00:16.8]} 53. Qe7+ {[%clk 0:00:26.5]} 53... Kxg6 {[%clk 0:00:16.4]}
54. Qf6# {[%clk 0:00:26.4]} 1-0